[Event "*** Titled Tuesday Blitz"]
[Site "Chess.com"]
[Date "2020.05.12"]
[Round "7"]
[White "Konek-Gorbunok"]
[Black "kot60"]
[Result "1/2-1/2"]
[WhiteElo "2169"]
[BlackElo "2340"]
[TimeControl "180+1"]
[EndTime "11:17:45 PDT"]
[Termination "Game drawn by agreement"]

1. d4 {[%clk 0:03:00.9]} 1... Nf6 {[%clk 0:02:59.5]} 2. Nf3 {[%clk 0:03:01.8]}
2... g6 {[%clk 0:02:59.1]} 3. c4 {[%clk 0:03:01.7]} 3... Bg7 {[%clk 0:02:59.1]}
4. Nc3 {[%clk 0:03:02.1]} 4... d5 {[%clk 0:02:59.5]} 5. cxd5 {[%clk 0:03:01.7]}
5... Nxd5 {[%clk 0:02:59.7]} 6. Bd2 {[%clk 0:03:02.2]} 6... Nb6 {[%clk
0:02:59.1]} 7. Bg5 {[%clk 0:02:58.2]} 7... O-O {[%clk 0:03:00]} 8. e3 {[%clk
0:02:57.9]} 8... N8d7 {[%clk 0:02:57.3]} 9. Be2 {[%clk 0:02:56.6]} 9... Nf6
{[%clk 0:02:56.6]} 10. O-O {[%clk 0:02:55.2]} 10... Bf5 {[%clk 0:02:55.6]} 11.
Rc1 {[%clk 0:02:54.2]} 11... c6 {[%clk 0:02:55.5]} 12. h3 {[%clk 0:02:50.1]}
12... Nbd5 {[%clk 0:02:55.4]} 13. Qb3 {[%clk 0:02:41.5]} 13... Qb6 {[%clk
0:02:50]} 14. Nxd5 {[%clk 0:02:32.4]} 14... Nxd5 {[%clk 0:02:46.8]} 15. Qxb6
{[%clk 0:02:25.8]} 15... axb6 {[%clk 0:02:47.2]} 16. a3 {[%clk 0:02:25.4]} 16...
h6 {[%clk 0:02:46.3]} 17. Bh4 {[%clk 0:02:24]} 17... Rfe8 {[%clk 0:02:40.6]} 18.
Bc4 {[%clk 0:02:20.2]} 18... Rad8 {[%clk 0:02:36.6]} 19. Bg3 {[%clk 0:02:17.3]}
19... b5 {[%clk 0:02:35.7]} 20. Bb3 {[%clk 0:02:07.7]} 20... g5 {[%clk
0:02:30.8]} 21. Rfd1 {[%clk 0:02:04.5]} 21... Bg6 {[%clk 0:02:26.1]} 22. Ne5
{[%clk 0:01:58.7]} 22... Bh7 {[%clk 0:02:21]} 23. Nd3 {[%clk 0:01:50.5]} 23...
Bxd3 {[%clk 0:02:14.7]} 24. Rxd3 {[%clk 0:01:49.3]} 24... Kf8 {[%clk 0:02:10.9]}
25. Kf1 {[%clk 0:01:32.4]} 25... e6 {[%clk 0:02:08.9]} 26. f3 {[%clk 0:01:29.6]}
26... Rd7 {[%clk 0:01:57.1]} 27. e4 {[%clk 0:01:27.4]} 27... Nf6 {[%clk
0:01:52.8]} 28. Rcd1 {[%clk 0:01:21.5]} 28... Nh5 {[%clk 0:01:51]} 29. Bh2
{[%clk 0:01:16.2]} 29... Red8 {[%clk 0:01:48.9]} 30. d5 {[%clk 0:00:49.9]} 30...
cxd5 {[%clk 0:01:39.8]} 31. exd5 {[%clk 0:00:39.6]} 31... Bxb2 {[%clk
0:01:39.4]} 32. d6 {[%clk 0:00:36.1]} 32... e5 {[%clk 0:01:26.6]} 33. Rd5 {[%clk
0:00:29.4]} 33... Nf4 {[%clk 0:01:18.8]} 34. Bxf4 {[%clk 0:00:27.7]} 34... gxf4
{[%clk 0:01:13.8]} 35. Rxb5 {[%clk 0:00:25.5]} 35... Rxd6 {[%clk 0:01:13.3]} 36.
Rxd6 {[%clk 0:00:22.8]} 36... Rxd6 {[%clk 0:01:13.1]} 37. Rxb7 {[%clk
0:00:22.6]} 37... Bxa3 {[%clk 0:01:08.3]} 38. Rxf7+ {[%clk 0:00:19.6]} 38... Ke8
{[%clk 0:01:08.1]} 39. Rc7 {[%clk 0:00:13.6]} 39... Bb2 {[%clk 0:01:03.8]} 40.
Rc2 {[%clk 0:00:10.5]} 40... Bd4 {[%clk 0:01:02.9]} 41. Ke2 {[%clk 0:00:10.1]}
41... Rb6 {[%clk 0:01:02.4]} 42. Ba4+ {[%clk 0:00:09.6]} 42... Ke7 {[%clk
0:01:01.7]} 43. Rc7+ {[%clk 0:00:08.8]} 43... Kd6 {[%clk 0:00:59.8]} 44. Rc2
{[%clk 0:00:08.9]} 44... Rb1 {[%clk 0:00:58.3]} 45. Kd3 {[%clk 0:00:08.1]} 45...
Re1 {[%clk 0:00:51.6]} 46. Re2 {[%clk 0:00:07.6]} 46... Ra1 {[%clk 0:00:49.8]}
47. Bb3 {[%clk 0:00:05.4]} 47... Rc1 {[%clk 0:00:45.8]} 48. Ke4 {[%clk
0:00:04.3]} 48... Rc3 {[%clk 0:00:41.5]} 49. Bg8 {[%clk 0:00:03.3]} 49... Kc5
{[%clk 0:00:39]} 50. Kf5 {[%clk 0:00:01.9]} 50... Re3 {[%clk 0:00:37.6]} 51.
Rc2+ {[%clk 0:00:01.8]} 51... Bc3 {[%clk 0:00:36.7]} 52. Kg6 {[%clk 0:00:02.1]}
52... Kd4 {[%clk 0:00:36.3]} 53. Kxh6 {[%clk 0:00:01.8]} 53... Kd3 {[%clk
0:00:36]} 54. Ra2 {[%clk 0:00:01.8]} 54... Bd4 {[%clk 0:00:33.4]} 55. Bh7+
{[%clk 0:00:02.2]} 55... Kc3 {[%clk 0:00:32.7]} 56. Be4 {[%clk 0:00:02.5]} 56...
Re1 {[%clk 0:00:31.9]} 57. h4 {[%clk 0:00:01.6]} 57... Rh1 {[%clk 0:00:30.8]}
58. h5 {[%clk 0:00:01.8]} 58... Kb3 {[%clk 0:00:30.6]} 59. Ra6 {[%clk
0:00:01.9]} 59... Rh2 {[%clk 0:00:29.4]} 60. Rg6 {[%clk 0:00:02.8]} 60... Bc5
{[%clk 0:00:23.2]} 61. Rg4 {[%clk 0:00:03.7]} 61... Bf8+ {[%clk 0:00:20.9]} 62.
Kg6 {[%clk 0:00:04.6]} 62... Kc3 {[%clk 0:00:21]} 63. Rg5 {[%clk 0:00:04]} 63...
Kd4 {[%clk 0:00:20.5]} 64. Rg4 {[%clk 0:00:04]} 64... Rh1 {[%clk 0:00:19]} 65.
Kf7 {[%clk 0:00:04]} 1/2-1/2

[Event "*** Titled Tuesday Blitz"]
[Site "Chess.com"]
[Date "2020.05.12"]
[Round "7"]
[White "Djager97"]
[Black "Mr_Sinigami"]
[Result "0-1"]
[WhiteElo "2429"]
[BlackElo "2611"]
[TimeControl "180+1"]
[EndTime "11:17:46 PDT"]
[Termination "Mr_Sinigami won by resignation"]

1. e4 {[%clk 0:03:00.9]} 1... c5 {[%clk 0:02:56.9]} 2. Nf3 {[%clk 0:02:59.7]}
2... e6 {[%clk 0:02:56.7]} 3. d4 {[%clk 0:02:59.7]} 3... cxd4 {[%clk 0:02:56.8]}
4. Nxd4 {[%clk 0:03:00.6]} 4... a6 {[%clk 0:02:56.7]} 5. Bd3 {[%clk 0:02:58.5]}
5... Nf6 {[%clk 0:02:56.4]} 6. O-O {[%clk 0:02:54.7]} 6... Qc7 {[%clk
0:02:56.5]} 7. Qe2 {[%clk 0:02:49.2]} 7... d6 {[%clk 0:02:56.1]} 8. c4 {[%clk
0:02:47.8]} 8... Nc6 {[%clk 0:02:47]} 9. Nb3 {[%clk 0:02:43]} 9... Ne5 {[%clk
0:02:32.8]} 10. Nc3 {[%clk 0:02:32.2]} 10... Be7 {[%clk 0:02:31.9]} 11. Nd4
{[%clk 0:02:16.4]} 11... O-O {[%clk 0:02:27.4]} 12. b3 {[%clk 0:02:16.2]} 12...
b5 {[%clk 0:02:18.8]} 13. Ndxb5 {[%clk 0:01:56.8]} 13... axb5 {[%clk 0:02:16.2]}
14. Nxb5 {[%clk 0:01:57.7]} 14... Qb8 {[%clk 0:02:05.9]} 15. Bc2 {[%clk
0:01:53.8]} 15... Ba6 {[%clk 0:01:25.2]} 16. Bb2 {[%clk 0:01:49.7]} 16... Bxb5
{[%clk 0:00:59.5]} 17. cxb5 {[%clk 0:01:50.6]} 17... Rc8 {[%clk 0:00:50.4]} 18.
a4 {[%clk 0:01:38.5]} 18... Ng6 {[%clk 0:00:43.3]} 19. f4 {[%clk 0:01:34.8]}
19... e5 {[%clk 0:00:36.9]} 20. fxe5 {[%clk 0:01:09.7]} 20... dxe5 {[%clk
0:00:32.6]} 21. g3 {[%clk 0:01:08.8]} 21... Bc5+ {[%clk 0:00:30.7]} 22. Kg2
{[%clk 0:01:07.9]} 22... Bd4 {[%clk 0:00:23.6]} 23. Bd3 {[%clk 0:00:55]} 23...
Qd6 {[%clk 0:00:20.5]} 24. Bc4 {[%clk 0:00:51.1]} 24... Rd8 {[%clk 0:00:14.1]}
25. Rad1 {[%clk 0:00:49.2]} 25... Qe7 {[%clk 0:00:13.3]} 26. Bc1 {[%clk
0:00:39.9]} 26... h6 {[%clk 0:00:12.6]} 27. Qf3 {[%clk 0:00:33.2]} 27... Nf8
{[%clk 0:00:11.9]} 28. Bxh6 {[%clk 0:00:31.6]} 28... gxh6 {[%clk 0:00:12]} 29.
Qxf6 {[%clk 0:00:31.5]} 29... Qxf6 {[%clk 0:00:12]} 30. Rxf6 {[%clk 0:00:32.4]}
30... Rd7 {[%clk 0:00:10.9]} 31. Rdf1 {[%clk 0:00:28.1]} 31... Raa7 {[%clk
0:00:09.7]} 32. Rxh6 {[%clk 0:00:27]} 32... Kg7 {[%clk 0:00:10]} 33. Rhf6 {[%clk
0:00:26.3]} 33... Ng6 {[%clk 0:00:09.3]} 34. h4 {[%clk 0:00:24.1]} 34... Nf4+
{[%clk 0:00:09.1]} 35. R6xf4 {[%clk 0:00:21.1]} 35... exf4 {[%clk 0:00:09.2]}
36. gxf4 {[%clk 0:00:21.1]} 36... Be3 {[%clk 0:00:08.7]} 37. Kf3 {[%clk
0:00:20.5]} 37... Bc5 {[%clk 0:00:08.5]} 38. e5 {[%clk 0:00:17.4]} 38... Rd2
{[%clk 0:00:07.4]} 39. Ke4 {[%clk 0:00:15.3]} 39... Kf8 {[%clk 0:00:07.3]} 40.
Kf5 {[%clk 0:00:14.4]} 40... Rad7 {[%clk 0:00:07]} 41. a5 {[%clk 0:00:12.9]}
41... Rh2 {[%clk 0:00:07]} 42. b6 {[%clk 0:00:10.2]} 42... Rxh4 {[%clk
0:00:05.1]} 43. b4 {[%clk 0:00:08.6]} 43... Be3 {[%clk 0:00:02.9]} 44. Rf3
{[%clk 0:00:06.7]} 44... Rd4 {[%clk 0:00:02.8]} 45. b7 {[%clk 0:00:04.5]} 45...
Rhxf4+ {[%clk 0:00:01.7]} 46. Rxf4 {[%clk 0:00:03.9]} 46... Rxf4+ {[%clk
0:00:02.2]} 47. Kg5 {[%clk 0:00:04.5]} 47... Rxc4+ {[%clk 0:00:02.7]} 48. Kf5
{[%clk 0:00:02.6]} 48... Rxb4 {[%clk 0:00:03.6]} 49. a6 {[%clk 0:00:02.4]} 49...
Ba7 {[%clk 0:00:04.1]} 50. e6 {[%clk 0:00:02.2]} 50... Rb6 {[%clk 0:00:04.4]}
51. exf7 {[%clk 0:00:02]} 51... Kxf7 {[%clk 0:00:04.7]} 52. Ke5 {[%clk
0:00:02.9]} 52... Rxa6 {[%clk 0:00:05]} 53. Kd5 {[%clk 0:00:03.8]} 53... Rb6
{[%clk 0:00:05.3]} 54. b8=Q {[%clk 0:00:04.6]} 54... Rxb8 {[%clk 0:00:05.3]} 0-1

[Event "*** Titled Tuesday Blitz"]
[Site "Chess.com"]
[Date "2020.05.12"]
[Round "7"]
[White "Stronger1799"]
[Black "Efremov_Vlad"]
[Result "1-0"]
[WhiteElo "2298"]
[BlackElo "2124"]
[TimeControl "180+1"]
[EndTime "11:17:46 PDT"]
[Termination "Stronger1799 won by resignation"]

1. e4 {[%clk 0:02:57.1]} 1... c5 {[%clk 0:02:59.8]} 2. Nf3 {[%clk 0:02:56.8]}
2... Nc6 {[%clk 0:02:59.6]} 3. d4 {[%clk 0:02:57.7]} 3... cxd4 {[%clk
0:02:59.9]} 4. Nxd4 {[%clk 0:02:58.2]} 4... Nf6 {[%clk 0:03:00.1]} 5. Nc3 {[%clk
0:02:58.4]} 5... e5 {[%clk 0:02:59.9]} 6. Ndb5 {[%clk 0:02:59]} 6... d6 {[%clk
0:03:00.3]} 7. a4 {[%clk 0:02:59.4]} 7... a6 {[%clk 0:02:49.6]} 8. Na3 {[%clk
0:02:59.5]} 8... Be7 {[%clk 0:02:49.7]} 9. Be2 {[%clk 0:02:59.8]} 9... Be6
{[%clk 0:02:47.5]} 10. O-O {[%clk 0:03:00]} 10... d5 {[%clk 0:02:46.9]} 11. exd5
{[%clk 0:02:54.9]} 11... Nxd5 {[%clk 0:02:46.5]} 12. Nxd5 {[%clk 0:02:54.6]}
12... Qxd5 {[%clk 0:02:37.5]} 13. Be3 {[%clk 0:02:46]} 13... O-O {[%clk
0:02:35]} 14. Nc4 {[%clk 0:02:44.4]} 14... Qxd1 {[%clk 0:02:06.4]} 15. Rfxd1
{[%clk 0:02:45.3]} 15... Rad8 {[%clk 0:02:03.7]} 16. c3 {[%clk 0:02:40.6]} 16...
f5 {[%clk 0:01:59.7]} 17. b4 {[%clk 0:02:34.4]} 17... f4 {[%clk 0:01:25.2]} 18.
Rxd8 {[%clk 0:02:29.8]} 18... Nxd8 {[%clk 0:01:20.5]} 19. Bb6 {[%clk 0:02:16.7]}
19... e4 {[%clk 0:01:20.1]} 20. Rd1 {[%clk 0:02:02.5]} 20... f3 {[%clk
0:01:18.6]} 21. gxf3 {[%clk 0:02:01.9]} 21... exf3 {[%clk 0:01:18.1]} 22. Bd3
{[%clk 0:01:59.1]} 22... Bf6 {[%clk 0:01:17.1]} 23. b5 {[%clk 0:01:38]} 23...
axb5 {[%clk 0:01:07.9]} 24. axb5 {[%clk 0:01:38.9]} 24... Nf7 {[%clk 0:01:07.4]}
25. Re1 {[%clk 0:01:27.3]} 25... Bd7 {[%clk 0:01:02.1]} 26. Re3 {[%clk
0:01:08.9]} 26... Bxb5 {[%clk 0:00:57.1]} 27. Rxf3 {[%clk 0:00:46.8]} 27... Bc6
{[%clk 0:00:56.5]} 28. Rg3 {[%clk 0:00:38.3]} 28... Ng5 {[%clk 0:00:55.2]} 29.
Nd6 {[%clk 0:00:27.8]} 29... Nf3+ {[%clk 0:00:48]} 30. Kf1 {[%clk 0:00:24.6]}
30... Ne5 {[%clk 0:00:23.9]} 31. Bc2 {[%clk 0:00:17.2]} 31... Ra8 {[%clk
0:00:23.2]} 32. f4 {[%clk 0:00:16.5]} 32... Ra1+ {[%clk 0:00:18]} 33. Ke2 {[%clk
0:00:15.3]} 33... Ng6 {[%clk 0:00:09]} 34. Bc5 {[%clk 0:00:06.7]} 34... Nxf4+
{[%clk 0:00:07.9]} 35. Kd2 {[%clk 0:00:04.5]} 35... Nd5 {[%clk 0:00:07.4]} 36.
Bb3 {[%clk 0:00:03.1]} 36... Rb1 {[%clk 0:00:07.6]} 37. Kc2 {[%clk 0:00:03]}
37... Rh1 {[%clk 0:00:07.5]} 38. Rd3 {[%clk 0:00:03.5]} 38... Rxh2+ {[%clk
0:00:07.4]} 39. Kb1 {[%clk 0:00:04.1]} 39... Rh5 {[%clk 0:00:07.8]} 40. Ne4
{[%clk 0:00:02.9]} 40... Re5 {[%clk 0:00:07.1]} 41. Ng3 {[%clk 0:00:01.4]} 41...
Kh8 {[%clk 0:00:06.6]} 42. c4 {[%clk 0:00:01.7]} 42... Nc7 {[%clk 0:00:04.8]}
43. Bd4 {[%clk 0:00:02.6]} 43... Re8 {[%clk 0:00:04.3]} 44. Kc2 {[%clk 0:00:03]}
44... Bxd4 {[%clk 0:00:04]} 45. Rxd4 {[%clk 0:00:03.9]} 45... Ne6 {[%clk
0:00:04.3]} 46. Rh4 {[%clk 0:00:03.5]} 46... Nc5 {[%clk 0:00:04.3]} 47. Ba2
{[%clk 0:00:03]} 47... Ne4 {[%clk 0:00:03.3]} 48. Nf5 {[%clk 0:00:02]} 48... Nf6
{[%clk 0:00:03]} 49. Nd6 {[%clk 0:00:02.1]} 49... Be4+ {[%clk 0:00:02.8]} 50.
Kc3 {[%clk 0:00:01.8]} 50... Re6 {[%clk 0:00:02.9]} 51. c5 {[%clk 0:00:01.9]}
51... b6 {[%clk 0:00:02.7]} 52. Bxe6 {[%clk 0:00:02.1]} 52... Nd5+ {[%clk
0:00:01.8]} 53. Bxd5 {[%clk 0:00:01.8]} 53... Bxd5 {[%clk 0:00:02.4]} 54. cxb6
{[%clk 0:00:02.7]} 54... h6 {[%clk 0:00:02.6]} 55. Rd4 {[%clk 0:00:02.8]} 55...
Bc6 {[%clk 0:00:02.5]} 56. b7 {[%clk 0:00:03.3]} 56... Bxb7 {[%clk 0:00:02.9]}
57. Nxb7 {[%clk 0:00:04.2]} 57... Kh7 {[%clk 0:00:03.4]} 58. Nd6 {[%clk
0:00:05.1]} 58... g5 {[%clk 0:00:03.9]} 59. Ne4 {[%clk 0:00:05.7]} 59... Kg6
{[%clk 0:00:04.6]} 60. Kd3 {[%clk 0:00:06.3]} 60... Kf5 {[%clk 0:00:05.3]} 61.
Ke3 {[%clk 0:00:06.6]} 61... h5 {[%clk 0:00:05.9]} 62. Rd5+ {[%clk 0:00:07]}
62... Kg4 {[%clk 0:00:05.9]} 63. Rxg5+ {[%clk 0:00:07.9]} 63... Kh4 {[%clk
0:00:06.7]} 64. Rg8 {[%clk 0:00:07.8]} 1-0

[Event "*** Titled Tuesday Blitz"]
[Site "Chess.com"]
[Date "2020.05.12"]
[Round "7"]
[White "calin_dragomirescu"]
[Black "KerryStead"]
[Result "1-0"]
[WhiteElo "2291"]
[BlackElo "2107"]
[TimeControl "180+1"]
[EndTime "11:17:46 PDT"]
[Termination "calin_dragomirescu won on time"]

1. Nf3 {[%clk 0:03:00.9]} 1... d5 {[%clk 0:02:59.5]} 2. c4 {[%clk 0:03:00.6]}
2... d4 {[%clk 0:02:59.1]} 3. e3 {[%clk 0:03:00.6]} 3... c5 {[%clk 0:02:58.1]}
4. exd4 {[%clk 0:03:00.8]} 4... cxd4 {[%clk 0:02:58.1]} 5. d3 {[%clk 0:03:01.3]}
5... Nc6 {[%clk 0:02:57.8]} 6. g3 {[%clk 0:03:01.6]} 6... f6 {[%clk 0:02:57.5]}
7. Bg2 {[%clk 0:03:02]} 7... e5 {[%clk 0:02:57.8]} 8. O-O {[%clk 0:03:02.2]}
8... Be6 {[%clk 0:02:57.8]} 9. Na3 {[%clk 0:03:00.3]} 9... a6 {[%clk 0:02:56.2]}
10. Nc2 {[%clk 0:03:00.4]} 10... Bd6 {[%clk 0:02:53.3]} 11. a3 {[%clk
0:03:00.4]} 11... a5 {[%clk 0:02:52.5]} 12. Rb1 {[%clk 0:02:59.6]} 12... a4
{[%clk 0:02:52.3]} 13. Bd2 {[%clk 0:02:59]} 13... Nge7 {[%clk 0:02:50.8]} 14.
Bb4 {[%clk 0:02:58.7]} 14... Nxb4 {[%clk 0:02:49.5]} 15. Nxb4 {[%clk 0:02:58.5]}
15... Qd7 {[%clk 0:02:46.5]} 16. Nd2 {[%clk 0:02:53.8]} 16... O-O {[%clk
0:02:31.7]} 17. Ne4 {[%clk 0:02:53.5]} 17... Nc6 {[%clk 0:02:25.3]} 18. Nd5
{[%clk 0:02:37.8]} 18... Ra6 {[%clk 0:02:03.6]} 19. Nxd6 {[%clk 0:02:30.7]}
19... Qxd6 {[%clk 0:02:02.7]} 20. Re1 {[%clk 0:02:27.8]} 20... Qd7 {[%clk
0:01:44.6]} 21. Qd2 {[%clk 0:02:22.8]} 21... Na5 {[%clk 0:01:42.2]} 22. f4
{[%clk 0:02:03]} 22... Nb3 {[%clk 0:01:41]} 23. Qf2 {[%clk 0:02:01.7]} 23... Bf5
{[%clk 0:01:34.8]} 24. Rbd1 {[%clk 0:01:48.3]} 24... Nc5 {[%clk 0:01:32.7]} 25.
Bf1 {[%clk 0:01:41.1]} 25... Bg4 {[%clk 0:01:20.5]} 26. Be2 {[%clk 0:01:40.3]}
26... Bxe2 {[%clk 0:01:05.3]} 27. Qxe2 {[%clk 0:01:39]} 27... Re6 {[%clk
0:01:03.9]} 28. Qf1 {[%clk 0:01:33.3]} 28... exf4 {[%clk 0:00:52.3]} 29. Nxf4
{[%clk 0:01:29.7]} 29... Re5 {[%clk 0:00:47.1]} 30. Qg2 {[%clk 0:01:19]} 30...
Rfe8 {[%clk 0:00:39.1]} 31. Rxe5 {[%clk 0:01:15.8]} 31... Rxe5 {[%clk
0:00:39.1]} 32. Nd5 {[%clk 0:01:10]} 32... Qf5 {[%clk 0:00:29.8]} 33. Nb4 {[%clk
0:01:00.1]} 33... Re3 {[%clk 0:00:26.1]} 34. Rf1 {[%clk 0:00:51.4]} 34... Qg6
{[%clk 0:00:24.1]} 35. Qd5+ {[%clk 0:00:49.7]} 35... Ne6 {[%clk 0:00:23.1]} 36.
Nc2 {[%clk 0:00:42.7]} 36... Re2 {[%clk 0:00:20.4]} 37. Nxd4 {[%clk 0:00:38.8]}
37... Qxd3 {[%clk 0:00:19.7]} 38. Nxe6 {[%clk 0:00:35.6]} 38... Qe3+ {[%clk
0:00:17.7]} 39. Kh1 {[%clk 0:00:34.1]} 39... Qxe6 {[%clk 0:00:17.4]} 40. Qxe6+
{[%clk 0:00:33.7]} 40... Rxe6 {[%clk 0:00:17.3]} 41. Rf5 {[%clk 0:00:32.8]}
41... Re1+ {[%clk 0:00:15.6]} 42. Kg2 {[%clk 0:00:32.2]} 42... Rb1 {[%clk
0:00:15.5]} 43. Rb5 {[%clk 0:00:30.9]} 43... Rc1 {[%clk 0:00:15.2]} 44. Rb4
{[%clk 0:00:30.5]} 44... Rc2+ {[%clk 0:00:15.1]} 45. Kf3 {[%clk 0:00:29.8]}
45... g5 {[%clk 0:00:14.5]} 46. Rxb7 {[%clk 0:00:27.8]} 46... Rxc4 {[%clk
0:00:13.6]} 47. Rb4 {[%clk 0:00:27.8]} 47... Rc2 {[%clk 0:00:12.8]} 48. h3
{[%clk 0:00:26.4]} 48... Kg7 {[%clk 0:00:12]} 49. g4 {[%clk 0:00:25.8]} 49...
Kg6 {[%clk 0:00:11.9]} 50. Ke3 {[%clk 0:00:25.2]} 50... h5 {[%clk 0:00:11.5]}
51. gxh5+ {[%clk 0:00:24.7]} 51... Kxh5 {[%clk 0:00:11.2]} 52. Rxa4 {[%clk
0:00:25.6]} 52... Rxb2 {[%clk 0:00:11]} 53. Kd3 {[%clk 0:00:25.9]} 53... Rb3+
{[%clk 0:00:10.8]} 54. Kc4 {[%clk 0:00:25.5]} 54... Rxh3 {[%clk 0:00:10.4]} 55.
Ra8 {[%clk 0:00:26.4]} 55... Rh4+ {[%clk 0:00:09]} 56. Kb5 {[%clk 0:00:24.3]}
56... Kg6 {[%clk 0:00:08]} 57. a4 {[%clk 0:00:24.4]} 57... g4 {[%clk 0:00:02.2]}
58. a5 {[%clk 0:00:24.4]} 58... g3 {[%clk 0:00:02.6]} 59. Rg8+ {[%clk
0:00:22.8]} 59... Kf5 {[%clk 0:00:02.5]} 60. Rxg3 {[%clk 0:00:22.7]} 60... Kf4
{[%clk 0:00:03]} 61. Ra3 {[%clk 0:00:22]} 61... Rh5+ {[%clk 0:00:02.8]} 62. Kb6
{[%clk 0:00:21.8]} 1-0

[Event "*** Titled Tuesday Blitz"]
[Site "Chess.com"]
[Date "2020.05.12"]
[Round "7"]
[White "mamonika"]
[Black "FMOlexandrProhorov"]
[Result "1-0"]
[WhiteElo "2013"]
[BlackElo "2108"]
[TimeControl "180+1"]
[EndTime "11:17:47 PDT"]
[Termination "mamonika won by checkmate"]

1. b4 {[%clk 0:03:00.4]} 1... c6 {[%clk 0:02:59.3]} 2. e3 {[%clk 0:03:00]} 2...
a5 {[%clk 0:02:58.6]} 3. b5 {[%clk 0:03:00.1]} 3... Nf6 {[%clk 0:02:56.6]} 4.
Nf3 {[%clk 0:02:59.3]} 4... g6 {[%clk 0:02:56.7]} 5. c4 {[%clk 0:02:59]} 5...
Bg7 {[%clk 0:02:56.7]} 6. Bb2 {[%clk 0:02:59]} 6... O-O {[%clk 0:02:56.9]} 7.
Be2 {[%clk 0:02:57.2]} 7... d5 {[%clk 0:02:57.2]} 8. Nc3 {[%clk 0:02:54]} 8...
Bf5 {[%clk 0:02:55.2]} 9. O-O {[%clk 0:02:53.4]} 9... Nbd7 {[%clk 0:02:50.7]}
10. Nd4 {[%clk 0:02:44]} 10... e5 {[%clk 0:02:48.4]} 11. Nxf5 {[%clk 0:02:41.7]}
11... gxf5 {[%clk 0:02:49.3]} 12. Qc2 {[%clk 0:02:23]} 12... e4 {[%clk
0:02:35.5]} 13. d3 {[%clk 0:02:15]} 13... Re8 {[%clk 0:02:27.9]} 14. Rfd1 {[%clk
0:02:10.7]} 14... Qe7 {[%clk 0:02:20.4]} 15. dxe4 {[%clk 0:02:00.5]} 15... dxe4
{[%clk 0:02:12.7]} 16. Rd2 {[%clk 0:01:45.7]} 16... Ne5 {[%clk 0:02:12.4]} 17.
Rad1 {[%clk 0:01:42.5]} 17... Qe6 {[%clk 0:01:48.6]} 18. Qa4 {[%clk 0:01:29]}
18... Nfg4 {[%clk 0:01:44.4]} 19. h3 {[%clk 0:01:17.7]} 19... Nh6 {[%clk
0:01:40.2]} 20. Rd6 {[%clk 0:01:05.5]} 20... Qe7 {[%clk 0:01:40.2]} 21. c5
{[%clk 0:00:59.9]} 21... Qg5 {[%clk 0:01:35.1]} 22. Nxe4 {[%clk 0:00:42.8]}
22... fxe4 {[%clk 0:01:30.5]} 23. Qxe4 {[%clk 0:00:42.5]} 23... Nd7 {[%clk
0:01:07.1]} 24. Qc2 {[%clk 0:00:40.7]} 24... Bxb2 {[%clk 0:00:59.4]} 25. Rxd7
{[%clk 0:00:40.7]} 25... Be5 {[%clk 0:00:55.6]} 26. f4 {[%clk 0:00:36.7]} 26...
Qg3 {[%clk 0:00:50.9]} 27. fxe5 {[%clk 0:00:33.8]} 27... Qxe3+ {[%clk 0:00:51]}
28. Kh1 {[%clk 0:00:33.4]} 28... Qxe5 {[%clk 0:00:49.7]} 29. Bd3 {[%clk
0:00:26.1]} 29... f5 {[%clk 0:00:45]} 30. Qf2 {[%clk 0:00:18.2]} 30... Re7
{[%clk 0:00:40.9]} 31. Rxe7 {[%clk 0:00:17.5]} 31... Qxe7 {[%clk 0:00:41]} 32.
Bc4+ {[%clk 0:00:15.6]} 32... Kh8 {[%clk 0:00:37.3]} 33. Qd4+ {[%clk 0:00:15.5]}
33... Qg7 {[%clk 0:00:37.5]} 34. Qxg7+ {[%clk 0:00:15.4]} 34... Kxg7 {[%clk
0:00:37.8]} 35. Rd7+ {[%clk 0:00:15.9]} 35... Kg6 {[%clk 0:00:37.5]} 36. Rxb7
{[%clk 0:00:15.5]} 36... cxb5 {[%clk 0:00:37.7]} 37. Bxb5 {[%clk 0:00:15.7]}
37... Nf7 {[%clk 0:00:34.8]} 38. c6 {[%clk 0:00:15.7]} 38... Nd6 {[%clk
0:00:32.4]} 39. Rb6 {[%clk 0:00:16]} 39... Nxb5 {[%clk 0:00:31.8]} 40. Rxb5
{[%clk 0:00:16.4]} 40... Kg5 {[%clk 0:00:31.4]} 41. Kg1 {[%clk 0:00:13.7]} 41...
Rc8 {[%clk 0:00:29.8]} 42. Rc5 {[%clk 0:00:13.7]} 42... Rc7 {[%clk 0:00:28.8]}
43. Kf2 {[%clk 0:00:13.7]} 43... h5 {[%clk 0:00:27.7]} 44. Kf3 {[%clk
0:00:11.4]} 44... h4 {[%clk 0:00:27.2]} 45. a4 {[%clk 0:00:11]} 45... Kf6 {[%clk
0:00:23.3]} 46. Kf4 {[%clk 0:00:11.4]} 46... Ke6 {[%clk 0:00:23.6]} 47. Kg5
{[%clk 0:00:08.7]} 47... Kd6 {[%clk 0:00:23.4]} 48. Rxf5 {[%clk 0:00:08.8]}
48... Rg7+ {[%clk 0:00:22]} 49. Kxh4 {[%clk 0:00:07.1]} 49... Kxc6 {[%clk
0:00:18.2]} 50. g4 {[%clk 0:00:05.2]} 50... Rh7+ {[%clk 0:00:14.8]} 51. Kg3
{[%clk 0:00:04.8]} 51... Re7 {[%clk 0:00:15.3]} 52. Rxa5 {[%clk 0:00:04.2]}
52... Kd6 {[%clk 0:00:14.9]} 53. Rf5 {[%clk 0:00:02.6]} 53... Re3+ {[%clk
0:00:14.3]} 54. Rf3 {[%clk 0:00:02.8]} 54... Ra3 {[%clk 0:00:14.9]} 55. Rxa3
{[%clk 0:00:01.8]} 55... Ke5 {[%clk 0:00:15.1]} 56. Rb3 {[%clk 0:00:02]} 56...
Kd4 {[%clk 0:00:15]} 57. a5 {[%clk 0:00:02.9]} 57... Kc5 {[%clk 0:00:14.7]} 58.
a6 {[%clk 0:00:03.8]} 58... Kc4 {[%clk 0:00:15.4]} 59. a7 {[%clk 0:00:04.7]}
59... Kxb3 {[%clk 0:00:15.8]} 60. a8=Q {[%clk 0:00:05.6]} 60... Kc3 {[%clk
0:00:16.7]} 61. Qd5 {[%clk 0:00:05.9]} 61... Kb4 {[%clk 0:00:16.5]} 62. Kf3
{[%clk 0:00:06.8]} 62... Kc3 {[%clk 0:00:17.1]} 63. Ke3 {[%clk 0:00:07]} 63...
Kc2 {[%clk 0:00:18]} 64. Qd2+ {[%clk 0:00:06.4]} 64... Kb3 {[%clk 0:00:17.9]}
65. Qc1 {[%clk 0:00:06.5]} 65... Kb4 {[%clk 0:00:18]} 66. Kd4 {[%clk 0:00:06.8]}
66... Kb5 {[%clk 0:00:18.2]} 67. Qc5+ {[%clk 0:00:07]} 67... Ka4 {[%clk
0:00:17.2]} 68. Qb6 {[%clk 0:00:07.1]} 68... Ka3 {[%clk 0:00:17.1]} 69. Kc3
{[%clk 0:00:07.6]} 69... Ka2 {[%clk 0:00:17.4]} 70. Qb2# {[%clk 0:00:08]} 1-0